bitfinex-derivatives/quotes_SOLF0:USTF0_20260118
["timestamp","ask_amount","ask_price","bid_price","bid_amount"]
[1768733041379,5.29900329,142.47,142.42,3.15473988]
[1768733041578,6.3189,142.48,142.42,3.15473988]
[1768733041769,5.29900332,142.47,142.42,3.15473988]
[1768733042076,6.3189,142.48,142.42,3.15473988]
[1768733062390,8.08501386,142.5,142.43,3.32077864]
[1768733062588,5.30099691,142.49,142.43,3.32077864]
[1768733062786,5.30099691,142.48,142.43,3.32077864]
[1768733062993,8.08501386,142.5,142.43,3.32077864]
[1768733063288,5.30101297,142.49,142.43,3.32077864]
[1768733063488,5.30101297,142.48,142.43,3.32077864]
[1768733063690,8.08501386,142.5,142.43,3.32077864]
[1768733063888,5.30088568,142.49,142.43,3.32077864]
[1768733064089,5.30088568,142.48,142.43,3.32077864]
[1768733064288,8.08501386,142.5,142.43,3.32077864]
[1768733064490,5.3008055,142.49,142.43,3.32077864]
[1768733064789,5.3008055,142.48,142.43,3.32077864]
[1768733065096,8.08501386,142.5,142.43,3.32077864]
[1768733065292,5.30074849,142.49,142.43,3.32077864]
[1768733065491,5.30074849,142.48,142.43,3.32077864]
[1768733065790,8.08501386,142.5,142.43,3.32077864]
[1768733065992,5.30073315,142.49,142.43,3.32077864]
[1768733066191,5.30073315,142.48,142.43,3.32077864]
[1768733066391,8.08501386,142.5,142.43,3.32077864]
[1768733066592,5.30066706,142.49,142.43,3.32077864]
[1768733066792,5.30066706,142.48,142.43,3.32077864]
[1768733066987,8.08501386,142.5,142.43,3.32077864]
[1768733067183,5.30066706,142.49,142.43,3.32077864]
[1768733067386,5.30066706,142.48,142.43,3.32077864]
[1768733067602,8.08501386,142.5,142.43,3.32077864]
[1768733067802,5.30060638,142.49,142.43,3.32077864]
[1768733068094,5.30060638,142.48,142.43,3.32077864]
[1768733068294,8.08501386,142.5,142.43,3.32077864]
[1768733068488,5.3005505,142.49,142.43,3.32077864]
[1768733068689,5.3005505,142.48,142.43,3.32077864]
[1768733068989,8.08501386,142.5,142.43,3.32077864]
[1768733069191,5.3005505,142.49,142.43,3.32077864]
[1768733069391,5.3005505,142.48,142.43,3.32077864]
[1768733069691,8.08491024,142.5,142.43,3.32077864]
[1768733069893,5.30049891,142.49,142.43,3.32077864]
[1768733070195,8.08491024,142.5,142.43,3.32077864]
[1768733070395,5.3003929,142.49,142.43,3.32077864]
[1768733070598,8.08491024,142.5,142.43,3.32077864]
[1768733070788,5.3003929,142.49,142.43,3.32077864]
[1768733070988,8.08491024,142.5,142.43,3.32077864]
[1768733071287,5.3003929,142.49,142.43,3.32077864]
[1768733071487,8.08491024,142.5,142.43,3.32077864]
[1768733071687,5.30008895,142.49,142.43,3.32077864]
[1768733071883,8.08491024,142.5,142.43,3.32077864]
[1768733072093,5.30008896,142.49,142.43,3.32077864]
[1768733072298,8.08491024,142.5,142.43,3.32077864]
[1768733072601,5.29983353,142.49,142.43,3.32077864]
[1768733072788,8.08491024,142.5,142.43,3.32077864]
[1768733072991,5.29983353,142.49,142.43,3.32077864]
[1768733073193,8.08491024,142.5,142.43,3.32077864]
[1768733073495,5.29962191,142.49,142.43,3.32077864]
[1768733073697,8.08491024,142.5,142.43,3.32077864]
[1768733073896,5.29962191,142.49,142.43,3.32077864]
[1768733074091,8.08491024,142.5,142.43,3.32077864]
[1768733074296,5.29955712,142.49,142.43,3.32077864]
[1768733074502,5.29955712,142.48,142.43,3.32077864]
[1768733074794,8.08491024,142.5,142.43,3.32077864]
[1768733074995,5.29948898,142.49,142.43,3.32077864]
[1768733075196,5.29948898,142.48,142.43,3.32077864]
[1768733075391,8.08491024,142.5,142.43,3.32077864]
[1768733075592,5.29947556,142.49,142.43,3.32077864]
[1768733075797,5.29947556,142.48,142.43,3.32077864]
[1768733075986,8.08491024,142.5,142.43,3.32077864]
[1768733076189,5.29961744,142.49,142.43,3.32077864]
[1768733076394,5.29961744,142.48,142.43,3.32077864]
[1768733076693,8.08491024,142.5,142.43,3.32077864]
[1768733076892,5.29936074,142.49,142.43,3.32077864]
[1768733077093,5.29936074,142.48,142.43,3.32077864]
[1768733077293,8.08491024,142.5,142.43,3.32077864]
[1768733077494,5.29930456,142.49,142.43,3.32077864]
[1768733077699,5.29930456,142.48,142.43,3.32077864]
[1768733077896,8.08491024,142.5,142.43,3.32077864]
[1768733078099,5.29930456,142.49,142.43,3.32077864]
[1768733078399,5.29930456,142.48,142.43,3.32077864]
[1768733078598,8.08491024,142.5,142.43,3.32077864]
[1768733078898,5.29925525,142.49,142.43,3.32077864]
[1768733079097,8.08491024,142.5,142.43,3.32077864]
[1768733079297,5.2991971,142.49,142.43,3.32077864]
[1768733079499,5.2991971,142.48,142.43,3.32077864]
[1768733079797,8.08491024,142.5,142.43,3.32077864]
[1768733079798,6.3183,142.5,142.43,3.32077864]
[1768733079999,5.29912736,142.49,142.43,3.32077864]
[1768733080194,5.29912736,142.48,142.43,3.32077864]
[1768733080496,8.08491024,142.5,142.43,3.32077864]
[1768733080695,5.29912855,142.49,142.43,3.32077864]
[1768733080896,5.29912855,142.48,142.43,3.32077864]
[1768733081094,8.08491024,142.5,142.43,3.32077864]
[1768733081295,5.29915199,142.49,142.43,3.32077864]
[1768733081495,5.29915199,142.48,142.43,3.32077864]
[1768733081695,8.08491024,142.5,142.43,3.32077864]
[1768733081896,5.29915609,142.49,142.43,3.32077864]
[1768733082097,5.29915609,142.48,142.43,3.32077864]
[1768733082396,8.08491024,142.5,142.43,3.32077864]
[1768733082596,5.29916086,142.49,142.43,3.32077864]
[1768733082795,5.29916086,142.48,142.43,3.32077864]
[1768733082996,8.08491024,142.5,142.43,3.32077864]
[1768733083198,5.29913121,142.49,142.43,3.32077864]
[1768733083396,5.29913121,142.48,142.43,3.32077864]
[1768733083700,8.08491024,142.5,142.43,3.32077864]
[1768733083900,5.29916524,142.49,142.43,3.32077864]
[1768733084201,5.29916524,142.48,142.43,3.32077864]
[1768733084404,8.08491024,142.5,142.43,3.32077864]
[1768733084598,5.29914765,142.49,142.43,3.32077864]
[1768733084798,5.29914765,142.48,142.43,3.32077864]
[1768733084994,8.08491024,142.5,142.43,3.32077864]
[1768733085198,5.29912391,142.49,142.43,3.32077864]
[1768733085394,5.29912391,142.48,142.43,3.32077864]
[1768733085606,8.08491024,142.5,142.43,3.32077864]
[1768733085799,11.61785301,142.49,142.43,3.32077864]
[1768733085999,5.29915301,142.48,142.43,3.32077864]
[1768733086201,6.3187,142.49,142.43,3.32077864]
[1768733086401,5.29916482,142.48,142.43,3.32077864]
[1768733086602,6.3187,142.49,142.43,3.32077864]
[1768733086802,5.29916482,142.48,142.43,3.32077864]
[1768733087006,6.3187,142.49,142.43,3.32077864]
[1768733087208,5.29916482,142.48,142.43,3.32077864]
[1768733087404,6.3181,142.5,142.43,3.32077864]
[1768733087617,5.29930845,142.49,142.43,3.32077864]
[1768733087916,5.29930845,142.48,142.43,3.32077864]
[1768733088117,6.3181,142.5,142.43,3.32077864]
[1768733088309,5.29942511,142.49,142.43,3.32077864]
[1768733088511,5.29942511,142.48,142.43,3.32077864]
[1768733088711,6.3181,142.5,142.43,3.32077864]
[1768733089016,5.29942511,142.49,142.43,3.32077864]
[1768733089216,5.29942511,142.48,142.43,3.32077864]
[1768733089513,6.3181,142.5,142.43,3.32077864]
[1768733089817,5.29948602,142.49,142.43,3.32077864]
[1768733090017,5.29948602,142.48,142.43,3.32077864]
[1768733090316,6.3181,142.5,142.43,3.32077864]
[1768733090510,5.29957731,142.49,142.43,3.32077864]
[1768733090806,5.29957731,142.48,142.43,3.32077864]
[1768733091006,6.3181,142.5,142.43,3.32077864]
[1768733091210,5.29629605,142.49,142.43,3.32077864]
[1768733091413,5.29629605,142.48,142.43,3.32077864]
[1768733091710,6.3181,142.5,142.43,3.32077864]
[1768733091910,5.29639832,142.49,142.43,3.32077864]
[1768733092210,5.29639832,142.48,142.43,3.32077864]
[1768733092407,6.3181,142.5,142.43,3.32077864]
[1768733092606,5.29639357,142.49,142.43,3.32077864]
[1768733092811,5.29639357,142.48,142.43,3.32077864]
[1768733093008,6.3181,142.5,142.43,3.32077864]
[1768733093213,5.29639131,142.49,142.43,3.32077864]
[1768733093413,5.29639131,142.48,142.43,3.32077864]
[1768733093714,6.3181,142.5,142.43,3.32077864]
[1768733093914,5.29641997,142.49,142.43,3.32077864]
[1768733094120,5.29641997,142.48,142.43,3.32077864]
[1768733094316,6.3181,142.5,142.43,3.32077864]
[1768733094516,5.29650956,142.49,142.43,3.32077864]
[1768733094720,5.29650956,142.48,142.43,3.32077864]
[1768733094918,6.3181,142.5,142.43,3.32077864]
[1768733095119,5.29650956,142.49,142.43,3.32077864]
[1768733095321,5.29650956,142.48,142.43,3.32077864]
[1768733095523,6.3181,142.5,142.43,3.32077864]
[1768733095711,5.29654801,142.49,142.43,3.32077864]
[1768733095911,5.29654801,142.48,142.43,3.32077864]
[1768733096224,6.3181,142.5,142.43,3.32077864]
[1768733096423,5.29662971,142.49,142.43,3.32077864]
[1768733096624,5.29662971,142.48,142.43,3.32077864]
[1768733096819,6.3181,142.5,142.43,3.32077864]
[1768733097018,5.29662971,142.49,142.43,3.32077864]
[1768733097218,5.29662971,142.48,142.43,3.32077864]
[1768733097425,6.3181,142.5,142.43,3.32077864]
[1768733097618,5.2967903,142.49,142.43,3.32077864]
[1768733097818,5.2967903,142.48,142.43,3.32077864]
[1768733098024,6.3181,142.5,142.43,3.32077864]
[1768733098324,5.2967903,142.49,142.43,3.32077864]
[1768733098516,5.2967903,142.48,142.43,3.32077864]
[1768733098717,6.3181,142.5,142.43,3.32077864]
[1768733098916,5.29692693,142.49,142.43,3.32077864]
[1768733099117,5.29692693,142.48,142.43,3.32077864]
[1768733099320,6.3181,142.5,142.43,3.32077864]
[1768733099520,5.29699256,142.49,142.43,3.32077864]
[1768733099722,5.29699256,142.48,142.43,3.32077864]
[1768733099925,6.3181,142.5,142.43,3.32077864]
[1768733100220,5.29699256,142.49,142.43,3.32077864]
[1768733100421,5.29699256,142.48,142.43,3.32077864]
[1768733100625,6.3181,142.5,142.43,3.32077864]
[1768733100925,5.29704156,142.49,142.43,3.32077864]
[1768733101118,5.29704156,142.48,142.43,3.32077864]
[1768733101314,6.3181,142.5,142.43,3.32077864]
[1768733101518,5.29712054,142.49,142.43,3.32077864]
[1768733101726,5.29712054,142.48,142.43,3.32077864]
[1768733102023,6.3186,142.49,142.41,3.0737375]
[1768733102224,5.29691241,142.48,142.41,3.0737375]
[1768733102424,5.29666767,142.47,142.41,3.0737375]
[1768733102627,6.3186,142.49,142.41,3.0737375]
[1768733102822,5.29666767,142.48,142.41,4.84034774]
[1768733103021,6.3186,142.49,142.41,4.84034774]
[1768733103222,5.29668372,142.48,142.41,4.84034774]
[1768733103422,6.3186,142.49,142.41,4.84034774]
[1768733103626,5.29644114,142.48,142.41,4.84034774]
[1768733103926,6.3186,142.49,142.41,11.16224774]
[1768733104128,5.29644114,142.48,142.41,11.16224774]
[1768733104322,6.3186,142.49,142.41,11.16224774]
[1768733104521,5.29631365,142.48,142.41,11.16224774]
[1768733104825,6.3186,142.49,142.41,11.16224774]
[1768733105020,5.29631365,142.48,142.41,11.16224774]
[1768733105221,6.3186,142.49,142.41,11.16224774]
[1768733105526,5.29619401,142.48,142.41,11.16224774]
[1768733105716,6.3186,142.49,142.41,11.16224774]
[1768733105915,5.29619401,142.48,142.41,11.16224774]
[1768733106119,6.3186,142.49,142.41,11.16224774]
[1768733106326,5.29620635,142.48,142.41,11.16224774]
[1768733106528,6.3186,142.49,142.41,11.16224774]
[1768733106826,5.29608118,142.48,142.41,11.16224774]
[1768733107026,6.3186,142.49,142.41,11.16224774]
[1768733107227,5.29608118,142.48,142.41,11.16224774]
[1768733107426,6.3186,142.49,142.41,11.16224774]
[1768733107726,5.29667705,142.48,142.41,11.16224774]
[1768733107925,6.3186,142.49,142.41,11.16224774]
[1768733108224,5.29691854,142.48,142.41,11.16224774]
[1768733108423,6.3186,142.49,142.41,11.16224774]
[1768733108623,5.29678598,142.48,142.41,11.16224774]
[1768733108823,6.3186,142.49,142.41,11.16224774]
[1768733109023,5.29678598,142.48,142.41,11.16224774]
[1768733109224,6.3186,142.49,142.41,11.16224774]
[1768733109524,5.29666484,142.48,142.41,11.16224774]
[1768733109727,6.3186,142.49,142.41,11.16224774]
[1768733109915,5.29666484,142.48,142.41,11.16224774]
[1768733110219,6.3186,142.49,142.42,3.0737375]
[1768733110425,5.2965844,142.48,142.42,3.0737375]
[1768733110629,6.3186,142.49,142.42,3.0737375]
[1768733110925,5.2965844,142.48,142.42,3.0737375]
[1768733111125,6.3186,142.49,142.42,3.0737375]
[1768733111427,5.29654705,142.48,142.42,3.0737375]
[1768733111628,6.3186,142.49,142.42,3.0737375]
[1768733111926,5.29650113,142.48,142.42,3.0737375]
[1768733112227,6.3186,142.49,142.42,3.0737375]
[1768733112428,5.29642303,142.48,142.42,3.0737375]
[1768733112626,6.3186,142.49,142.42,3.0737375]
[1768733112828,5.29642303,142.48,142.42,3.0737375]
[1768733113022,6.3186,142.49,142.42,3.0737375]
[1768733113223,5.29642303,142.48,142.42,3.0737375]
[1768733113522,6.3186,142.49,142.42,3.0737375]
[1768733113723,5.29634969,142.48,142.42,3.0737375]
[1768733113923,6.3186,142.49,142.42,3.0737375]
[1768733114126,5.29634969,142.48,142.42,3.0737375]
[1768733114327,6.3186,142.49,142.42,3.0737375]
[1768733114520,5.29628082,142.48,142.42,3.0737375]
[1768733114721,6.3186,142.49,142.42,3.0737375]
[1768733114925,5.29592551,142.48,142.42,3.0737375]
[1768733115119,6.3186,142.49,142.42,3.0737375]
[1768733115423,5.29597226,142.48,142.42,3.0737375]
[1768733115619,6.3186,142.49,142.42,3.0737375]
[1768733115819,5.29595013,142.48,142.42,3.0737375]
[1768733116121,6.3186,142.49,142.42,3.0737375]
[1768733116122,6.3177,142.51,142.43,4.84034774]
[1768733116323,5.29630245,142.5,142.44,3.0737375]
[1768733116525,5.29630245,142.49,142.44,3.0737375]
[1768733116729,6.3177,142.51,142.44,3.0737375]
[1768733116929,5.29641533,142.5,142.44,3.0737375]
[1768733117130,5.29641533,142.49,142.44,3.0737375]
[1768733117332,6.3177,142.51,142.44,3.0737375]
[1768733117536,5.2964086,142.5,142.44,3.0737375]
[1768733117833,5.2964086,142.49,142.44,3.0737375]
[1768733118132,6.3177,142.51,142.44,3.0737375]
[1768733118435,11.61447446,142.5,142.44,3.0737375]
[1768733118634,5.29647446,142.49,142.44,3.0737375]
[1768733118934,6.318,142.5,142.44,3.0737375]
[1768733119123,5.29640209,142.49,142.44,3.0737375]
[1768733119327,6.318,142.5,142.44,3.0737375]
[1768733119522,5.29630836,142.49,142.44,3.0737375]
[1768733119730,6.318,142.5,142.44,3.0737375]
[1768733119932,5.29630836,142.49,142.44,3.0737375]
[1768733120232,6.318,142.5,142.44,3.0737375]
[1768733120531,5.29621344,142.49,142.44,3.0737375]
[1768733120732,6.318,142.5,142.44,3.0737375]
[1768733120931,5.29645005,142.49,142.44,3.0737375]
[1768733121131,6.318,142.5,142.44,3.0737375]
[1768733121334,5.32172315,142.49,142.44,3.0737375]
[1768733121522,6.318,142.5,142.44,3.0737375]
[1768733121823,5.32166799,142.49,142.44,3.0737375]
[1768733122025,6.318,142.5,142.44,3.0737375]
[1768733122225,5.32178439,142.49,142.44,3.0737375]
[1768733122420,6.318,142.5,142.44,3.0737375]
[1768733122620,5.32171479,142.49,142.44,3.0737375]
[1768733122834,6.318,142.5,142.44,3.0737375]
[1768733123026,5.32171479,142.49,142.44,3.0737375]
[1768733123223,6.318,142.5,142.44,3.0737375]
[1768733123427,5.32140842,142.49,142.44,3.0737375]
[1768733123632,6.318,142.5,142.44,3.0737375]
[1768733123830,5.32164615,142.49,142.44,3.0737375]
[1768733124030,6.318,142.5,142.44,3.0737375]
[1768733124233,5.32164615,142.49,142.44,3.0737375]
[1768733124434,6.318,142.5,142.44,3.0737375]
[1768733124734,5.3216187,142.49,142.44,3.0737375]
[1768733124933,6.318,142.5,142.44,3.0737375]
[1768733125235,5.3216187,142.49,142.44,3.0737375]
[1768733125532,6.318,142.5,142.44,3.0737375]
[1768733125733,5.32153847,142.49,142.44,3.0737375]
[1768733126033,6.318,142.5,142.44,3.0737375]
[1768733126233,5.32153847,142.49,142.44,3.0737375]
[1768733126533,6.318,142.5,142.44,3.0737375]
[1768733126733,5.32146253,142.49,142.44,3.0737375]
[1768733126934,6.318,142.5,142.44,3.0737375]
[1768733127230,5.32146253,142.49,142.44,3.0737375]
[1768733127434,6.318,142.5,142.44,3.0737375]
[1768733127636,5.3214047,142.49,142.44,3.0737375]
[1768733127836,6.318,142.5,142.44,3.0737375]
[1768733128041,5.3214047,142.49,142.44,3.0737375]
[1768733128228,6.318,142.5,142.44,3.0737375]
[1768733128428,5.32133538,142.49,142.44,3.0737375]
[1768733128729,6.318,142.5,142.44,3.0737375]
[1768733128933,5.32133538,142.49,142.44,3.0737375]
[1768733129130,6.318,142.5,142.44,3.0737375]
[1768733129333,5.3213007,142.49,142.44,3.0737375]
[1768733129536,6.318,142.5,142.44,3.0737375]
[1768733129736,5.3212818,142.49,142.44,3.0737375]
[1768733129936,6.318,142.5,142.44,3.0737375]
[1768733130138,5.3212818,142.49,142.44,3.0737375]
[1768733130340,6.318,142.5,142.44,3.0737375]
[1768733130539,5.32121853,142.49,142.44,3.0737375]
[1768733130738,6.318,142.5,142.44,3.0737375]
[1768733130937,5.32121853,142.49,142.44,3.0737375]
[1768733131143,6.318,142.5,142.44,3.0737375]
[1768733131344,5.32112682,142.49,142.44,4.83996017]
[1768733131543,6.318,142.5,142.44,4.83996017]
[1768733131841,5.32113275,142.49,142.44,4.83996017]
[1768733132044,6.318,142.5,142.44,4.83996017]
[1768733132243,5.32113277,142.49,142.44,4.83996017]
[1768733132443,6.318,142.5,142.44,4.83996017]
[1768733132644,5.32107634,142.49,142.44,4.83996017]
[1768733132834,6.318,142.5,142.44,4.83996017]
[1768733133039,5.32107634,142.49,142.44,4.83996017]
[1768733133335,6.318,142.5,142.44,4.83996017]
[1768733133539,5.32102542,142.49,142.44,4.83996017]
[1768733133743,6.318,142.5,142.44,4.83996017]
[1768733133933,5.32104537,142.49,142.44,4.83996017]
[1768733134138,6.318,142.5,142.44,4.83996017]
[1768733134338,5.32099648,142.49,142.44,4.83996017]
[1768733134546,6.318,142.5,142.44,4.83996017]
[1768733134750,5.32099648,142.49,142.44,3.0737375]
[1768733135048,6.318,142.5,142.44,3.0737375]
[1768733135347,5.32092477,142.49,142.44,3.0737375]
[1768733135543,6.318,142.5,142.44,3.0737375]
[1768733135743,5.32092863,142.49,142.44,3.0737375]
[1768733135945,6.318,142.5,142.44,3.0737375]
[1768733136147,5.32092863,142.49,142.44,3.0737375]
[1768733136445,6.318,142.5,142.44,3.0737375]
[1768733136645,5.32088292,142.49,142.45,3.20696639]
[1768733136846,8.08332267,142.52,142.45,3.20696639]
[1768733137048,5.32087462,142.51,142.45,3.20696639]
[1768733137245,5.32087462,142.5,142.45,3.20696639]
[1768733137443,5.32087462,142.49,142.45,3.20696639]
[1768733137648,8.08332267,142.52,142.45,3.20696639]
[1768733137844,5.32081727,142.51,142.45,3.20696639]
[1768733138050,5.32081727,142.5,142.45,3.20696639]
[1768733138349,5.32081727,142.49,142.45,3.20696639]
[1768733138546,8.08332267,142.52,142.45,3.20696639]
[1768733138753,5.32078159,142.51,142.45,3.20696639]
[1768733138953,5.32078159,142.5,142.45,3.20696639]
[1768733139153,8.08332267,142.52,142.45,3.20696639]
[1768733139154,5.32078159,142.49,142.45,3.20696639]
[1768733139355,1.76622267,142.52,142.42,4.97318906]
[1768733139548,5.32072433,142.51,142.42,4.97318906]
[1768733139749,7.086947,142.5,142.42,4.97318906]
[1768733139949,5.32072433,142.49,142.42,4.97318906]
[1768733140150,1.76622267,142.5,142.43,3.20696639]
[1768733140348,5.3206936,142.49,142.43,3.20696639]
[1768733140552,1.76622267,142.5,142.43,3.20696639]
[1768733140760,5.32069708,142.49,142.43,9.52796639]
[1768733140961,8.08422267,142.5,142.43,9.52796639]
[1768733141160,5.32071319,142.49,142.43,9.52796639]
[1768733141361,8.08422267,142.5,142.43,9.52796639]
[1768733141561,5.32069641,142.49,142.43,9.52796639]
[1768733141861,8.08422267,142.5,142.43,9.52796639]
[1768733142060,5.3206963,142.49,142.43,9.52796639]
[1768733142252,8.08422267,142.5,142.43,9.52796639]
[1768733142457,5.32067843,142.49,142.43,9.52796639]
[1768733142661,8.08422267,142.5,142.43,9.52796639]
[1768733142862,5.32067843,142.49,142.43,9.52796639]
[1768733143062,8.08422267,142.5,142.43,9.52796639]
[1768733143361,5.32062279,142.49,142.43,9.52796639]
[1768733143561,8.08422267,142.5,142.43,9.52796639]
[1768733143754,5.32066038,142.49,142.43,9.52796639]
[1768733143956,8.08422267,142.5,142.43,9.52796639]
[1768733144161,5.32066038,142.49,142.43,9.52796639]
[1768733144369,8.08422267,142.5,142.43,9.52796639]
[1768733144667,5.32064335,142.49,142.43,9.52796639]
[1768733144966,8.08422267,142.5,142.43,9.52796639]
[1768733145268,5.32061112,142.49,142.43,9.52796639]
[1768733145468,8.08422267,142.5,142.43,9.52796639]
[1768733145670,5.32066879,142.49,142.43,9.52796639]
[1768733145864,8.08422267,142.5,142.43,9.52796639]
[1768733146065,5.32066879,142.49,142.43,9.52796639]
[1768733146263,8.08422267,142.5,142.43,9.52796639]
[1768733146464,5.32065713,142.49,142.43,9.52796639]
[1768733146665,8.08422267,142.5,142.43,9.52796639]
[1768733146869,5.32053586,142.49,142.43,9.52796639]
[1768733147160,8.08422267,142.5,142.43,9.52796639]
[1768733147366,5.32061609,142.49,142.43,9.52796639]
[1768733147560,8.08422267,142.5,142.43,9.52796639]
[1768733147758,5.32059022,142.49,142.43,9.52796639]
[1768733147963,8.08422267,142.5,142.43,9.52796639]
[1768733148262,5.32057836,142.49,142.43,9.52796639]
[1768733148468,8.08422267,142.5,142.43,9.52796639]
[1768733148672,5.32077318,142.49,142.43,9.52796639]
[1768733148864,8.08422267,142.5,142.43,9.52796639]
[1768733149165,5.32077318,142.49,142.43,9.52796639]
[1768733149366,8.08422267,142.5,142.43,9.52796639]
[1768733149566,5.32091264,142.49,142.43,9.52796639]
[1768733149865,8.08422267,142.5,142.43,9.52796639]
[1768733150059,5.32091857,142.49,142.43,9.52796639]
[1768733150258,8.08422267,142.5,142.43,9.52796639]
[1768733150465,5.32107299,142.49,142.43,9.52796639]
[1768733150660,8.08422267,142.5,142.43,9.52796639]
[1768733150871,5.32107299,142.49,142.43,9.52796639]
[1768733151066,8.08422267,142.5,142.43,9.52796639]
[1768733151272,5.32422769,142.49,142.43,9.52796639]
[1768733151469,8.08422267,142.5,142.43,9.52796639]
[1768733151670,5.3243989,142.49,142.43,9.52796639]
[1768733151870,8.08422267,142.5,142.43,9.52796639]
[1768733152070,5.32439693,142.49,142.43,9.52796639]
[1768733152270,8.08422267,142.5,142.43,9.52796639]
[1768733152565,5.32458714,142.49,142.43,9.52796639]
[1768733152771,8.08422267,142.5,142.43,9.52796639]
[1768733152971,5.32458714,142.49,142.43,9.52796639]
[1768733153172,8.08422267,142.5,142.43,9.52796639]
[1768733153474,5.32465016,142.49,142.43,9.52796639]
[1768733153676,1.76622267,142.5,142.43,9.52796639]
[1768733153875,5.32482297,142.49,142.43,9.52796639]
[1768733154075,6.3174,142.52,142.43,9.52796639]
[1768733154275,7.09104564,142.51,142.43,9.52796639]
[1768733154476,5.32482297,142.5,142.43,9.52796639]
[1768733154675,1.76622267,142.51,142.43,9.52796639]
[1768733154676,5.32482297,142.49,142.43,9.52796639]
[1768733154872,5.32509977,142.48,142.43,9.52796639]
[1768733155072,1.76622267,142.51,142.43,9.52796639]
[1768733155272,5.32509977,142.5,142.43,9.52796639]
[1768733155468,5.32509977,142.49,142.43,9.52796639]
[1768733155778,5.32509977,142.48,142.43,9.52796639]
[1768733156077,1.76622267,142.51,142.43,9.52796639]
[1768733156376,5.325368,142.5,142.43,9.52796639]
[1768733156674,5.325368,142.49,142.43,9.52796639]
[1768733156877,5.325368,142.48,142.43,9.52796639]
[1768733157077,1.76622267,142.51,142.43,11.29418906]
[1768733157278,5.32563616,142.5,142.43,11.29418906]
[1768733157472,5.32563616,142.49,142.43,11.29418906]
[1768733157672,5.32563616,142.48,142.43,11.29418906]
[1768733157874,1.76622267,142.51,142.43,11.29418906]
[1768733158174,5.32595029,142.5,142.43,11.29418906]
[1768733158475,5.32595029,142.49,142.43,11.29418906]
[1768733158679,5.32595029,142.48,142.43,11.29418906]
[1768733158872,1.76622267,142.51,142.43,11.29418906]
[1768733159072,5.32633096,142.5,142.43,11.29418906]
[1768733159374,5.32633096,142.49,142.43,11.29418906]
[1768733159672,5.32633096,142.48,142.43,11.29418906]
[1768733159872,1.76622267,142.51,142.43,11.29418906]
[1768733160073,5.32682532,142.5,142.43,11.29418906]
[1768733160275,5.32682532,142.49,142.43,11.29418906]
[1768733160477,5.32682532,142.48,142.43,11.29418906]
[1768733160776,1.76622267,142.51,142.43,11.29418906]
[1768733160977,5.32761497,142.5,142.43,11.29418906]
[1768733161178,5.32761497,142.49,142.43,11.29418906]
[1768733161479,5.32761497,142.48,142.43,11.29418906]
[1768733161775,1.76622267,142.51,142.43,11.29418906]
[1768733161976,5.32784083,142.5,142.44,6.3205]
[1768733162171,5.32784083,142.49,142.44,6.3205]
[1768733162371,5.32784083,142.48,142.44,6.3205]
[1768733162572,1.76622267,142.51,142.44,6.3205]
[1768733162783,5.32784478,142.5,142.44,6.3205]
[1768733162979,5.32784478,142.49,142.44,9.353914]
[1768733163180,5.32784478,142.48,142.44,9.353914]
[1768733163380,1.76622267,142.51,142.44,9.353914]
[1768733163578,5.32779935,142.5,142.44,9.353914]
[1768733163777,5.32779935,142.49,142.44,9.353914]
[1768733163977,5.32779935,142.48,142.44,9.353914]
[1768733164182,8.08362267,142.52,142.44,9.353914]
[1768733164382,5.32780637,142.51,142.44,9.353914]
[1768733164584,5.32780637,142.5,142.44,9.353914]
[1768733164881,5.32780637,142.49,142.44,9.353914]
[1768733165080,5.32780637,142.48,142.44,9.353914]
[1768733165281,8.08362267,142.52,142.44,9.353914]
[1768733165482,5.32786584,142.51,142.44,9.353914]
[1768733165783,5.32786584,142.5,142.44,9.353914]
[1768733165980,5.32786584,142.49,142.44,9.353914]
[1768733166177,5.32786584,142.48,142.44,9.353914]
[1768733166386,8.08362267,142.52,142.44,9.353914]
[1768733166684,5.32786822,142.51,142.44,9.353914]
[1768733166982,5.32786822,142.5,142.44,9.353914]
[1768733167183,5.32786822,142.49,142.44,9.353914]
[1768733167375,5.32786822,142.48,142.44,9.353914]
[1768733167579,8.08362267,142.52,142.44,9.353914]
[1768733167881,5.32787724,142.51,142.44,9.353914]
[1768733168074,5.32787724,142.5,142.44,9.353914]
[1768733168278,5.32787724,142.49,142.44,9.353914]
[1768733168476,5.32787724,142.48,142.44,9.353914]
[1768733168679,8.08362267,142.52,142.44,9.353914]
[1768733168980,5.32786024,142.51,142.44,9.353914]
[1768733169178,5.32786024,142.5,142.44,9.353914]
[1768733169379,5.32786024,142.49,142.44,9.353914]
[1768733169575,5.32786024,142.48,142.44,9.353914]
[1768733169781,8.08362267,142.52,142.44,9.353914]
[1768733169975,5.32749248,142.51,142.44,9.353914]
[1768733170182,452.06582575,142.53,142.43,1.76622267]
[1768733170183,5.32749248,142.5,142.45,9.353514]